Cogmind - Beta 9.2 @@@ ROGUE MODE // 2019.11.29 @ 09:19:12 Player: Engy Result: Destroyed by Y-45 Defender with Beam Rifle Performance ------------- Evolutions (1) 500 Regions Visited (4) 800 Robots Destroyed (84) 420 Value Destroyed (2208) 2208 Prototype IDs (5) 100 Alien Tech Used (0) 0 Bonus (0) 0 TOTAL SCORE: 4028 Bonus ------- None Cogmind --------- Core Integrity 0/400 Matter 291/300 Energy 240/240 System Corruption 0% Temperature Cool (27) Movement Hovering (176) Ox2 Location -9/Storage Parts ------- > --- POWER (1) -------- Nuclear Core > --- PROPULSION (2) --- Airjet Airjet > --- UTILITY (4) ------ High-capacity Storage Unit Improved Signal Interpreter Improved Terrain Scanner Hacking Suite > --- WEAPON (2) ------- Heavy EM Pulse Gun Heavy Assault Rifle > --- INVENTORY (12) --- Nuclear Core Nuclear Core Light Treads Weight Redist. System Visual Processing Unit Shield Generator Drone Bay (2/2) Drone Bay (2/2) Heavy EM Pulse Gun Heavy EM Pulse Gun Grenade Launcher Peak State ------------ > --- POWER ------------ Nuclear Core > --- PROPULSION ------- Airjet Airjet > --- UTILITY ---------- High-capacity Storage Unit Improved Signal Interpreter Improved Terrain Scanner Hacking Suite > --- WEAPON ----------- Heavy EM Pulse Gun Heavy Assault Rifle > --- INVENTORY -------- Nuclear Core Nuclear Core Light Treads Weight Redist. System Visual Processing Unit Shield Generator Drone Bay Heavy EM Pulse Gun Heavy EM Pulse Gun Grenade Launcher [Rating: 23] Favorites ----------- Power Ion Engine Engine Ion Engine Power Core Light Nuclear Core Propulsion Wheel Treads Light Treads Leg Aluminum Leg Wheel Wheel Hover Unit Airjet Flight Unit VTOL Module Utility ECM Suite Device ECM Suite Storage High-capacity Storage Unit Processor Improved Signal Interpreter Hackware Hacking Suite Weapon Heavy Assault Rifle Energy Gun Heavy EM Pulse Gun Ballistic Gun Heavy Assault Rifle Launcher Rocket Launcher Special Melee Weapon Datajack Build | -11 -10 -10 -9 -9 ------- Run | Scr Mat Min Mat Sto Slots Evolved 2 | . . . 2 . Power . | . . . . . Propulsion . | . . . . . Utility 2 | . . . 2 . Weapon . | . . . . . Parts Attached 69 | 7 25 2 33 2 Power 9 | 1 2 1 5 . Engine 7 | 1 2 . 4 . Core 2 | . . 1 1 . Reactor . | . . . . . Propulsion 25 | 2 12 . 11 . Treads 6 | . . . 6 . Leg 3 | . . . 3 . Wheel 9 | 2 7 . . . Hover 2 | . . . 2 . Flight 5 | . 5 . . . Utility 10 | 1 3 . 5 1 Device 4 | . 1 . 2 1 Storage 3 | 1 2 . . . Processor 2 | . . . 2 . Hackware 1 | . . . 1 . Protection . | . . . . . Artifact . | . . . . . Weapon 25 | 3 8 1 12 1 Energy Gun 17 | 3 4 . 10 . Energy Cannon . | . . . . . Ballistic Gun 4 | . 1 . 2 1 Ballistic Cannon . | . . . . . Launcher 3 | . 2 1 . . Special Weapon . | . . . . . Impact Weapon . | . . . . . Slashing Weapon . | . . . . . Piercing Weapon . | . . . . . Special Melee Weapon 1 | . 1 . . . Unidentified Prototypes 1 | . . . 1 . Parts Lost 22 | . 5 . 15 2 Power 2 | . . . 2 . Propulsion 5 | . 1 . 4 . Utility 3 | . . . 2 1 Weapon 12 | . 4 . 7 1 Highest Loss Streak 4 | . 2 . 4 1 Average Slot Usage (%) 97 | . 97 100 96 100 Engine 8 | . 13 2 8 . Core 3 | . . 11 2 11 Treads 6 | . . . 12 . Leg 1 | . . . 3 . Wheel 11 | . 21 28 3 . Hover 1 | . . . 1 22 Flight 1 | . 5 . . . Device 12 | . 13 14 12 11 Storage 12 | . 14 14 11 11 Processor 9 | . . . 18 11 Hackware 1 | . . . 1 11 Energy Gun 13 | . 14 14 12 11 Ballistic Gun 5 | . 3 . 7 11 Launcher 5 | . 8 13 1 . Naked Turns . | . . . . . Heaviest Build 46 | 11 44 45 46 46 Greatest Support 40 | 26 26 20 40 18 Greatest Overweight (x) 5 | . 5 2 4 2 Average Overweight (x) 1 | . 1 2 1 2 Largest Inventory Capacity 12 | 6 12 12 12 12 Average Capacity 11 | 5 9 12 12 12 Most Carried 12 | 4 10 12 12 12 Average Carried 10 | 1 8 11 10 11 Final Capacity 12 | 6 12 12 12 12 Final Carried 12 | 4 9 12 12 11 Class Distribution -------------------- 71% | Mutant 28% | Scavenger-Mutant Dominant Class ---------------- Mutant | -10/Materials Mutant | -10/Mines Scavenger-Mutant | -9/Materials Mutant | -9/Storage Resources | -11 -10 -10 -9 -9 ----------- Run | Scr Mat Min Mat Sto Matter Collected 1422 | 225 347 203 598 49 Remotely . | . . . . . Salvage Created 2595 | . 303 201 1724 367 Parts 170 | . 27 15 107 21 Haulers Intercepted 4 | . 1 . 3 . Recyclers Shooed 2 | . . . 1 1 Parts Field Recycled . | . . . . . Retrieved Matter . | . . . . . Parts Self-Destructed . | . . . . . Prevented . | . . . . . Kills | -11 -10 -10 -9 -9 ------- Run | Scr Mat Min Mat Sto Combat Hostiles Destroyed 55 | . 9 6 33 7 Guns 35 | . 1 3 27 4 AOE 17 | . 7 3 4 3 Classes Destroyed 10 | . 7 . 2 1 Worker 4 | . 1 . 3 . Builder 8 | . 2 1 3 2 Tunneler 3 | . 1 1 1 . Hauler 4 | . 1 . 3 . Operator 3 | . . . 2 1 Watcher 7 | . 3 . 4 . Swarmer 10 | . 3 . 7 . Grunt 35 | . 6 6 19 4 Brawler 1 | . . . . 1 Sentry 9 | . . . 7 2 Best Kill Streak 10 | . 6 3 10 4 Combat Bots Only 5 | . 3 2 5 4 Max Kills in Single Turn 3 | . 3 3 3 2 Gunslinging 1 | . . . . 1 Exploded 3 | . 3 2 2 2 Melee . | . . . . . Uniques/NPCs Destroyed . | . . . . . Combat | -11 -10 -10 -9 -9 -------- Run | Scr Mat Min Mat Sto Damage Taken 2740 | . 580 168 1734 258 Core 604 | . 165 33 337 69 Absorbed by Shields . | . . . . . Core Remaining (%) 60 | 100 . 20 . . Volleys Fired 208 | . 38 14 140 16 Largest 2 | . 2 2 2 2 Hottest 112 | . 112 89 100 68 Shots Fired 348 | . 60 25 231 32 Gun 318 | . 50 14 222 32 Cannon . | . . . . . Launcher 30 | . 10 11 9 . Special . | . . . . . Kinetic 103 | . 13 . 74 16 Thermal 36 | . 20 14 2 . Explosive 30 | . 10 11 9 . Electromagnetic 179 | . 17 . 146 16 Robot Hit Streak 30 | . 8 5 30 9 Robot Miss Streak 7 | . 4 3 7 4 Penetration Max . | . . . . . Secondary Targets 2 | . . . 1 1 Max Gunslinging Chain 1 | . . . 1 1 Shots Hit Robots 243 | . 61 13 150 19 Core Hits 123 | . 27 17 65 14 Critical Hits 1 | . . . 1 . Critical Kills . | . . . . . Critical Parts Destroyed 1 | . . . 1 . Melee Attacks 24 | . 24 . . . Impact . | . . . . . Slashing . | . . . . . Piercing . | . . . . . Sneak Attacks 24 | . 24 . . . Combat Hostiles . | . . . . . Follow-up Attacks . | . . . . . Damage Inflicted 5702 | . 1342 635 3292 433 Guns 3046 | . 348 132 2236 330 Cannons . | . . . . . Explosions 2652 | . 994 503 1056 99 Melee . | . . . . . Ramming 4 | . . . . 4 Kinetic 851 | . 77 . 627 147 Thermal 1219 | . 568 132 460 59 Explosive 1723 | . 555 503 625 40 Electromagnetic 1905 | . 142 . 1580 183 Impact . | . . . . . Slashing . | . . . . . Piercing . | . . . . . Highest Corruption . | . . . . . Average Corruption . | . . . . . Corruption Purged . | . . . . . Overload Shots . | . . . . . Overflow Damage 136 | . 45 46 45 . Projectiles . | . . . . . Explosions 136 | . 45 46 45 . Melee . | . . . . . Knockbacks . | . . . . . Impact . | . . . . . Kinetic . | . . . . . Secondary . | . . . . . Self-Inflicted Damage 271 | . 147 22 96 6 Shots 8 | . 3 1 3 1 Rammed 1 | . . . . 1 Targets Rammed 1 | . . . . 1 Kicked . | . . . . . Crushed . | . . . . . Highest Temperature 280 | . 238 280 210 81 Average Temperature 54 | . 72 120 40 24 Received Heat Transfer 999 | . 216 87 597 99 Siege Activations . | . . . . . Robots Corrupted 3 | . 1 . 2 . Combat Hostiles 3 | . 1 . 2 . Parts Fried 9 | . . . 9 . Impact Corruptions . | . . . . . Robots Melted 1 | . 1 . . . Combat Hostiles . | . . . . . Parts Melted 2 | . 1 . 1 . Heat Transferred 1740 | . 633 333 674 100 Parts Sabotaged . | . . . . . Parts Stolen . | . . . . . Parts Stripped . | . . . . . Power Chain Reactions 10 | . 1 . 8 1 Missiles Intercepted . | . . . . . Alert | -11 -10 -10 -9 -9 ------- Run | Scr Mat Min Mat Sto Peak Influence 347 | . 167 150 299 347 Average Influence 113 | . 58 76 153 188 Maximum Alert Level 1 | . . . 1 1 Low Security (%) 82 | 100 100 100 68 56 Level 1 17 | . . . 31 43 Level 2 . | . . . . . Level 3 . | . . . . . Level 4 . | . . . . . Level 5 . | . . . . . High Security . | . . . . . Max Security . | . . . . . Squads Dispatched 11 | . 2 . 7 2 Investigation 7 | . 2 . 5 . Extermination . | . . . . . Reinforcement 4 | . . . 2 2 Assault . | . . . . . Garrison . | . . . . . Intercept . | . . . . . Construction Impeded 2 | . . . 1 1 Haulers Reinforced . | . . . . . Stealth | -11 -10 -10 -9 -9 --------- Run | Scr Mat Min Mat Sto Distress Signals 7 | . . . 5 2 Communications Jammed . | . . . . . Distress Signals . | . . . . . Times Spotted 101 | . 19 6 66 10 Peak Tracking Total 6 | . 3 2 5 6 Tactical Retreats 18 | . 4 . 14 . Traps | -11 -10 -10 -9 -9 ------- Run | Scr Mat Min Mat Sto Traps Triggered 3 | . 1 . 2 . Indirectly . | . . . . . Trap Hack Attempts . | . . . . . Triggered . | . . . . . Disarmed . | . . . . . Reprogrammed . | . . . . . Reused . | . . . . . Traps Extracted . | . . . . . Installed . | . . . . . Triggered . | . . . . . Machines | -11 -10 -10 -9 -9 ---------- Run | Scr Mat Min Mat Sto Machines Disabled 14 | . 7 3 2 2 Max in Single Turn 4 | . 4 2 1 1 Machines Sabotaged . | . . . . . Garrisons Compromised . | . . . . . Overloaded Fab Kills . | . . . . . Fab Network Shutdowns . | . . . . . Hacking | -11 -10 -10 -9 -9 --------- Run | Scr Mat Min Mat Sto Machines Accessed 29 | . 11 . 14 4 Terminals 20 | . 8 . 8 4 Fabricators . | . . . . . Repair Stations 3 | . 1 . 2 . Recycling Units 4 | . 2 . 2 . Scanalyzers 2 | . . . 2 . Garrison Access . | . . . . . Total Hacks 98 | . 49 . 35 14 Successful 70 | . 36 . 23 11 Failed 28 | . 13 . 12 3 Catastrophic 1 | . 1 . . . Database Lockouts . | . . . . . Manual 57 | . 25 . 22 10 Terminals 67 | . 29 . 24 14 Fabricators . | . . . . . Repair Stations 21 | . 17 . 4 . Recycling Units 6 | . 3 . 3 . Scanalyzers 4 | . . . 4 . Garrison Access . | . . . . . Terminal Hacks 11 | . 7 . 1 3 Part Schematic 1 | . . . . 1 Prototype ID Bank 2 | . 2 . . . Open Door 1 | . . . . 1 Alert Level 1 | . 1 . . . Unreport Threat 3 | . 1 . 1 1 Locate Traps 1 | . 1 . . . Dispatch Records 1 | . 1 . . . Hauler Manifests 1 | . 1 . . . Fabricator Hacks . | . . . . . Repair Station Hacks 18 | . 14 . 4 . Scan Component 9 | . 7 . 2 . Repair 9 | . 7 . 2 . Recycling Unit Hacks 6 | . 3 . 3 . Report Inventory 4 | . 2 . 2 . Retrieve Components 2 | . 1 . 1 . Scanalyzer 4 | . . . 4 . Insert Component 2 | . . . 2 . Analyze 2 | . . . 2 . Garrison Access Hacks . | . . . . . Unauthorized Hacks 79 | . 31 . 30 18 Terminals 31 | . 12 . 11 8 Assimilate 13 | . 5 . 4 4 Botnet 18 | . 7 . 7 4 Fabricators . | . . . . . Repair Stations . | . . . . . Recycling Units . | . . . . . Scanalyzers . | . . . . . Garrison Access . | . . . . . Data Cores Recovered 1 | . . . 1 . Used . | . . . . . Hacking Detections 27 | . 9 . 14 4 Full Trace Events 2 | . 1 . 1 . Feedback Events . | . . . . . Feedback Blocked . | . . . . . Robot Schematics Acquired . | . . . . . Robots Built . | . . . . . Matter . | . . . . . Time . | . . . . . Total Robot Build Rating . | . . . . . Part Schematics Acquired 3 | . . . 2 1 Parts Built . | . . . . . Matter . | . . . . . Time . | . . . . . Total Part Build Rating . | . . . . . Parts Repaired 9 | . 7 . 2 . Time 246 | . 188 . 58 . Parts Recycled . | . . . . . Recycled Matter . | . . . . . Retrieved Matter . | . . . . . Retrieved Components 16 | . 7 . 9 . Parts Scanalyzed 2 | . . . 2 . Part Schematics Acquired 2 | . . . 2 . Parts Damaged . | . . . . . Bothacking | -11 -10 -10 -9 -9 ------------ Run | Scr Mat Min Mat Sto Used RIF Installer . | . . . . . Robots Hacked 2 | . 2 . . . Non-combat 2 | . 2 . . . Combat . | . . . . . Robot Hacks Applied 4 | . 4 . . . parse_system 2 | . 2 . . . no_distress 2 | . 2 . . . Relay Couplers Released . | . . . . . Robots Rewired . | . . . . . Allies Hacked . | . . . . . Hacks Repelled . | . . . . . Allies | -11 -10 -10 -9 -9 -------- Run | Scr Mat Min Mat Sto Total Allies . | . . . . . Largest Group . | . . . . . Highest-Rated Group . | . . . . . Highest-Rated Ally . | . . . . . Total Orders . | . . . . . Ally Attacks . | . . . . . Total Damage . | . . . . . Kills . | . . . . . Allies Corrupted . | . . . . . Allies Melted . | . . . . . Intel | -11 -10 -10 -9 -9 ------- Run | Scr Mat Min Mat Sto Robot Analysis Total . | . . . . . Derelict Logs Recovered 1 | . . 1 . . Drone Launches . | . . . . . Drone Recoveries . | . . . . . Exploration | -11 -10 -10 -9 -9 ------------- Run | Scr Mat Min Mat Sto Turns Passed 5783 | 112 1736 756 2974 205 Spaces Moved 3233 | 52 1138 699 1259 85 Core 4 | 4 . . . . Treads 712 | . . . 712 . Legs 211 | . . . 211 . Wheels 1953 | 48 1011 699 195 . Hover 226 | . . . 141 85 Flight 127 | . 127 . . . Fastest Speed 50 | 50 90 100 90 176 Average Speed 134 | 86 114 100 171 176 Slowest Speed 440 | 90 440 100 240 176 Overloaded Moves . | . . . . . Propulsion Burnouts . | . . . . . Robots Hopped . | . . . . . Cave-ins Triggered . | . . . . . Exploration Rate (%) 61 | 4 99 96 83 24 Regions Visited 4 Branch Regions 2 Pre-discovered Areas 1 | . . 1 . . Known Exits Taken 1 | . . . 1 . Unknown Exits Taken 3 | 1 1 1 . . Scrap Searched 3 | . . 3 . . Spaces Dug . | . . . . . Terrain Destroyed 213 | . 49 72 71 21 Melee . | . . . . . Projectile . | . . . . . AOE 213 | . 49 72 71 21 Actions | -11 -10 -10 -9 -9 --------- Run | Scr Mat Min Mat Sto Total 4296 | 118 1488 730 1852 108 Wait 648 | 50 230 11 356 1 Move 3229 | 51 1137 698 1258 85 Hop . | . . . . . Pick Up 78 | 10 22 4 40 2 Fast Attach 7 | . 5 . 2 . Attach 34 | 6 5 . 21 2 Detach . | . . . . . Swap 28 | 1 15 2 10 . Drop 39 | . 12 1 25 1 Fire 208 | . 38 14 140 16 Melee 24 | . 24 . . . Ram 1 | . . . . 1 Kick . | . . . . . Crush . | . . . . . Escape Stasis . | . . . . . Rewire . | . . . . . Trap . | . . . . . Miscellaneous . | . . . . . Route ------- -11/Scrapyard -10/Materials (discovered 4 exits: *Mat x3 / [*Min]) -10/Mines (discovered 2 exits: *Mat x2) -9/Materials (discovered 5 exits: *Mat x3 / *Min / *Sto) -9/Storage History --------- Turn | Location | Event 68 | -11/Scrapyard | Discovered new exit (range 16) 113 | -11/Scrapyard | Entered Materials 328 | -10/Materials | Build established: Mutant 398 | -10/Materials | Discovered new exit (range 7) 504 | -10/Materials | Discovered new exit (range 15) 613 | -10/Materials | Discovered new exit (range 8) 665 | -10/Materials | Core integrity fell below 50% 886 | -10/Materials | Repaired Ion Engine 918 | -10/Materials | Repaired Particle Gun 948 | -10/Materials | Repaired Wheel 974 | -10/Materials | Repaired Grenade Launcher 1005 | -10/Materials | Repaired Assault Rifle 1031 | -10/Materials | Repaired Wheel 1062 | -10/Materials | Repaired Targeting Computer 1108 | -10/Materials | Discovered new exit (range 15) 1849 | -10/Materials | Entered Mines 1856 | -10/Mines | Received a Rocket Launcher from a helpful Derelict 1940 | -10/Mines | Found a damaged Exp. Sensor Array with a note attached 1943 | -10/Mines | Found Prototype Device 2268 | -10/Mines | Discovered new exit (range 7) 2362 | -10/Mines | Discovered new exit (range 7) 2372 | -10/Mines | Learned location of Storage (-9) 2605 | -10/Mines | Entered Materials 2605 | -9/Materials | Evolved 2 slots: Utility x2 2606 | -9/Materials | Identified Exp. Sensor Array 3024 | -9/Materials | Lost 4 parts (1p1n1u1w) 3662 | -9/Materials | Core integrity fell below 50% 3926 | -9/Materials | Build established: Scavenger-Mutant 4104 | -9/Materials | Repaired Ion Engine 4285 | -9/Materials | Discovered new exit (range 7) 4296 | -9/Materials | Identified exit to Materials 4420 | -9/Materials | Discovered exit to Materials (range 15) 4802 | -9/Materials | Repaired Hvy. EM Pulse Gun 4945 | -9/Materials | Discovered new exit (range 5) 4954 | -9/Materials | Core integrity fell below 20% 4988 | -9/Materials | Identified exit to Storage 5136 | -9/Materials | Discovered exit to Materials (range 9) 5382 | -9/Materials | Discovered new exit (range 14) 5463 | -9/Materials | Identified exit to Mines 5579 | -9/Materials | Entered Storage 5618 | -9/Storage | Build established: Mutant 5784 | -9/Storage | Destroyed by Y-45 Defender with Beam Rifle Last Messages --------------- >>Trojan(Botnet) Trojan loaded successfully. Testing... Terminal linked with 2 systems. Awaiting botnet instructions. >>Trojan(Assimilate) Trojan loaded successfully. Testing... System interface override in place. >>Alert(Purge) Purged threat record, alert level lowered. >>Schematic(Arc Projector) Downloading schematic... Arc Projector Rating: 4 Schematic downloaded. 05749_ U-05 Engineer lays Concrete. 05762_ U-05 Engineer builds a Wall. 05764_ The unstable cave ceiling collapses. 05764_ U-05 Engineer lays Concrete. Map ----- +----------------------------------------------------+ | ?????????????????????????????????????????? | | ?????????????????????????????????????????? | | ?????????????????????????????????????????? | | ?????????????????????????????????????????? | | ?????????????????????????????????????????? | | ?????????????????????????????????????????? | | ?????????????????????????????????????????? | | ?????????????????????????????????????????? | | ?????????????????????????????????????????? | | ?????????????????????????????????????????? | | ????????????????#???????????#????????????? | | ?????????????????????????????????????????? | | ??????????? ??????????#??????????????????? | | ?????????????????????????????????????????? | | ??????????????????????? ???#?????????????? | | ??????????????"????? ????????????????????? | | ?????????????? ?? ?? ????????????????????? | | ?????????????????????????????????????????? | | ?????????????????? ???? ??#??#???????????? | | ??#??????????????? ???? ???#?????????????? | | ?????????????????????????????????#???????? | | ??????????######???##+##?????????????????? | | ?????????##"T"###### #############?????? | | ?????????# # # [% #?????? | | ????????## # # % #?????? | | ??????#?# # # @ Y #?????? | | ???????# = + + "" """ #????? | | ???????## %[ # # "Y """ ???????? | | ????#??# """ # # "" """ ?????#?? | | ???????### """ # # ???????? | | ???????## """ # ###########?#?????? | | ????????# ### #### # #????????? | | ????????### #####??# # #????????? | | ?????????###?????### # #????????? | | ?????#?#????######"#= # #????????? | | ???? ???????#!!!!#%# # #????????? | | ????????????# ==%/% + #????????? | | ????????????#!!=%#%# # #????????? | | ?????????#??####"#!# # #????????? | | ???????????????##### # #????????? | | ??????????????????#T #######+########### | | ?????#?#######T##### ####### ### # | | ??? =%! # # | | ??? %= + # | | ??? % = % | # ! # | | ????##########+#########+##### # # | | ????????????????? ???# #???# + # | | ????????????????????#T #???# # # | | ????????????????????##"""#???# #/ # | | ????????????????????#????#???# # ! # | +----------------------------------------------------+ Best States ------------- Heat Dissipation 28 Energy Generation 14 Energy Capacity 250 Matter Stores 300 Matter Capacity 300 Sight Range 16 Robot Scan Range 30 Terrain Scan Range 16 Terrain Scan Density 10 ECM Strength 1 Evasion (%) 50 Targeting Accuracy 5 Recoil Reduction 2 Offensive Hacking 10 Item Schematics ----------------- Shield Generator | -9/Materials | Scanalyzed Hacking Suite | -9/Materials | Scanalyzed Arc Projector | -9/Storage | Hacked Robot Schematics ------------------ None Fabricated ------------ Nothing Alien Tech Used ----------------- None Achievements -------------- It's Just You Shopping List Challenges ------------ None Game ------ Seed CoreSniperRedirector Manual? 0 Play Time 01:17:30 Cumulative 12.3 hours Start 2019.11.29 @ 08:00:02 End 2019.11.29 @ 09:19:12 Sessions 1 Manual Loads 0 Difficulty Rogue Special Mode None Game No. 14 Rogue 14 Adventurer 0 Explorer 0 Win Type - Total 0 Types 0/0/0/0/0/0/0 Lore% 7 Gallery% 21 Achievement% 14 Wizard Run 0 Options --------- ASCII 0 Keyboard 0 Movement Mouse Keybinds 0 Fullscreen 2 Font 18/Smallcaps Map View 76x50 Tactical HUD 1 Map Filters NONE Filters NONE Steam 1 RUN: 060dda32-5355-4ea4-9149-81b619f9ceac